bitfinex-derivatives/quotes_ETHF0:USTF0_20251204
["timestamp","ask_amount","ask_price","bid_price","bid_amount"]
[1764847750364,1.5287,3190.0,3189.9,1.65852]
[1764847752461,0.7628,3190.0,3189.9,1.65852]
[1764847752855,1.5287,3190.0,3189.9,1.65852]
[1764847753565,1.9822,3190.0,3189.9,1.65852]
[1764847754663,1.9822,3190.0,3189.9,0.90502]
[1764847754866,1.9822,3190.0,3189.9,1.65852]
[1764847755363,1.5287,3190.0,3189.9,1.65852]
[1764847755568,3.2108982,3190.3,3190.2,0.7483]
[1764847755865,5.84467652,3190.3,3190.2,0.90501]
[1764847757167,5.5178908,3190.3,3190.2,0.90501]
[1764847757364,0.7813908,3190.3,3190.2,4.86631]
[1764847757555,0.0030982,3190.3,3190.2,4.86631]
[1764847757869,0.0030667,3190.5,3190.4,1.6585]
[1764847758864,0.7658667,3190.5,3190.4,1.6585]
[1764847760962,1.5317667,3190.5,3190.4,1.6585]
[1764847761166,1.9852667,3190.5,3190.4,0.1567]
[1764847761366,1.5317667,3190.5,3190.4,1.6585]
[1764847761569,0.7658667,3190.5,3190.4,1.6585]
[1764847762168,1.5317667,3190.5,3190.4,1.6585]
[1764847763172,0.7658667,3190.5,3190.4,1.6585]
[1764847764173,1.5317667,3190.5,3190.4,0.905]
[1764847764377,1.5317667,3190.5,3190.4,1.6585]
[1764847765269,1.9852667,3190.5,3190.4,1.6585]
[1764847765477,0.7658667,3190.5,3190.4,1.6585]
[1764847767375,0.0030667,3190.5,3190.4,1.6585]
[1764847767569,0.7658667,3190.5,3190.4,1.6585]
[1764847768068,1.5317667,3190.5,3190.4,1.6585]
[1764847768475,1.9852667,3190.5,3190.4,0.1567]
[1764847768669,1.9852667,3190.5,3190.4,1.6585]
[1764847769163,1.5287,3190.2,3190.1,0.00470684]
[1764847769364,4.7365,3190.2,3190.1,0.00470684]
[1764847769567,45.5365,3190.2,3190.1,0.00470684]
[1764847770672,1.5287,3189.9,3189.8,0.15673]
[1764847771378,1.5287,3189.9,3189.8,0.90503]
[1764847771878,1.5287,3189.9,3189.8,0.15673]
[1764847772569,1.5287,3189.9,3189.8,0.90503]
[1764847772770,1.5287,3189.9,3189.8,0.15673]
[1764847773972,0.7628,3189.9,3189.8,1.63013]
[1764847774374,1.489,3189.9,3189.8,1.63013]
[1764847774573,3.21250684,3190.2,3190.1,1.4484]
[1764847774781,4.71480684,3190.2,3190.1,1.60512]
[1764847774979,1.50700684,3190.2,3190.1,1.60512]
[1764847776278,1.50700684,3190.2,3190.1,0.88002]
[1764847776980,1.50700684,3190.2,3190.1,1.60512]
[1764847777581,0.78080684,3190.2,3190.1,1.60512]
[1764847777983,1.50700684,3190.2,3190.1,0.88002]
[1764847778176,1.50700684,3190.2,3190.1,1.60512]
[1764847778177,0.00470684,3190.2,3190.1,1.60512]
[1764847778383,0.78080684,3190.2,3190.1,1.60512]
[1764847779283,0.00470684,3190.2,3190.1,1.60512]
[1764847780081,0.78080684,3190.2,3190.1,1.60512]
[1764847781389,0.00470684,3190.2,3190.1,1.60512]
[1764847783383,0.78080684,3190.2,3190.1,1.60512]
[1764847783586,0.00470684,3190.2,3190.1,1.60512]
[1764847784583,0.00470684,3190.2,3190.1,5.61408865]
[1764847789889,3.2078,3191.4,3190.7,1.4352]
[1764847790077,1.5318,3191.1,3191.0,1.59187]
[1764847790282,1.5318,3191.1,3191.0,0.85957]
[1764847790483,1.5318,3191.1,3191.0,0.15667]
[1764847790982,1.53476293,3191.1,3191.0,0.15667]
[1764847794690,1.53476293,3191.1,3191.0,0.85957]
[1764847794890,1.53476293,3191.1,3191.0,0.15667]
[1764847797289,0.77806293,3191.1,3191.0,1.59187]
[1764847797692,1.53476293,3191.1,3191.0,1.59187]
[1764847799490,0.00296293,3191.1,3191.0,2.01717]
[1764847799688,3.9829,3191.4,3191.3,1.59186]
[1764847800191,4.7396,3191.4,3191.3,1.59186]
[1764847800394,4.7396,3191.4,3191.3,0.85956]
[1764847800596,4.74302915,3191.4,3191.3,0.15943748]
[1764847800787,3.21122915,3191.4,3191.3,1.59463748]
[1764847800987,3.98632915,3191.4,3191.3,1.59463748]
[1764847801294,3.21122915,3191.4,3191.3,1.59463748]
[1764847801494,3.98632915,3191.4,3191.3,1.59463748]
[1764847801695,0.77852915,3191.4,3191.3,1.59463748]
[1764847801892,0.00342915,3191.4,3191.3,1.59463748]
[1764847802094,0.77852915,3191.4,3191.3,1.59463748]
[1764847802288,1.53522915,3191.4,3191.3,1.59463748]
[1764847802494,1.53522915,3191.4,3191.3,0.86233748]
[1764847802689,1.53522915,3191.4,3191.3,1.59463748]
[1764847803088,1.53522915,3191.4,3191.3,0.86233748]
[1764847803290,1.53522915,3191.4,3191.3,0.15943748]
[1764847804794,42.33522915,3191.4,3191.3,1.62323748]
[1764847805196,0.77852915,3191.4,3191.3,1.62323748]
[1764847805398,0.00342915,3191.4,3191.3,1.62323748]
[1764847805596,1.52282915,3191.4,3191.3,1.62323748]
[1764847805800,1.52282915,3191.4,3191.3,0.15943748]
[1764847806199,1.52282915,3191.4,3191.3,0.88283748]
[1764847807203,3.2078,3192.3,3192.0,0.4251]
[1764847807501,1.5194,3193.1,3193.0,1.4843]
[1764847807692,1.5194,3193.0,3192.9,1.64088]
[1764847807898,1.9579,3193.0,3192.9,0.87998]
[1764847808100,1.96110877,3193.0,3192.9,0.15658]
[1764847808302,1.96110877,3193.0,3192.9,0.87998]
[1764847808504,0.77460877,3193.0,3192.9,1.64088]
[1764847808704,0.00320877,3193.0,3192.9,1.64088]
[1764847808905,0.00320877,3193.0,3192.9,3.07950761]
[1764847809307,1.52260877,3193.0,3192.9,1.64088]
[1764847809902,0.77460877,3193.0,3192.9,1.64088]
[1764847810104,1.96110877,3193.0,3192.9,0.15658]
[1764847810304,1.96110877,3193.0,3192.9,1.64088]
[1764847810305,0.00320877,3193.0,3192.9,1.64088]
[1764847810501,1.96110877,3193.0,3192.9,0.15658]
[1764847810702,1.96110877,3193.0,3192.7,3.2078]
[1764847810703,3.39973638,3193.0,3192.7,3.2078]
[1764847810905,1.5194,3192.8,3192.7,3.2078]
[1764847811106,0.7714,3192.4,3192.3,1.64091]
[1764847811307,1.88033638,3193.0,3192.3,1.64091]
[1764847811602,0.44170877,3193.0,3192.4,1.59522761]
[1764847811811,1.96110877,3193.0,3192.9,0.7234]
[1764847812002,1.96110877,3193.0,3192.9,1.4843]
[1764847812203,1.96110877,3193.0,3192.9,0.7234]
[1764847813407,0.77460877,3193.0,3192.9,1.4843]
[1764847813904,1.52260877,3193.0,3192.9,1.4843]
[1764847814410,1.96110877,3193.0,3192.9,0.7234]
[1764847814805,1.5194,3192.9,3192.8,0.87998]
[1764847815312,1.5194,3192.9,3192.8,0.15658]
[1764847815608,1.5194,3192.9,3192.8,0.87998]
[1764847816311,0.7714,3192.9,3192.8,1.64088]
[1764847816511,0.77460877,3193.0,3192.9,1.4843]
[1764847816712,1.52260877,3193.0,3192.9,1.4843]
[1764847817714,1.96110877,3193.0,3192.9,0.7234]
[1764847818015,1.96110877,3193.0,3192.9,1.4843]
[1764847818616,0.00320877,3193.0,3192.9,1.64088]
[1764847819511,0.77460877,3193.0,3192.9,1.64088]
[1764847819712,0.00320877,3193.0,3192.9,1.64088]
[1764847822518,3.2078,3194.2,3193.9,1.4843]
[1764847822714,3.2078,3194.2,3193.5,0.4542]
[1764847822715,3.2078,3194.8,3194.4,0.7609]
[1764847822918,1.5194,3194.1,3194.0,3.9312]
[1764847823213,1.5194,3194.1,3194.0,3.2078]
[1764847823425,1.52304939,3194.1,3194.0,3.21134563]
[1764847823718,1.52304939,3194.1,3194.0,3.93474563]
[1764847824316,1.52304939,3194.1,3194.0,4.69564563]
[1764847824519,1.52304939,3194.1,3194.0,3.21134563]
[1764847824817,1.52304939,3194.1,3194.0,0.00354563]
[1764847825421,1.5194,3193.8,3192.7,0.15659]
[1764847825724,0.15653,3193.9,3192.7,0.15659]
[1764847825725,1.5194,3193.1,3193.0,1.4843]
[1764847825914,0.4385,3193.5,3193.0,1.64087]
[1764847826116,40.8,3193.4,3193.3,2.92292761]
[1764847826617,40.8,3193.4,3193.3,0.00283254]
[1764847827012,40.8,3193.4,3193.3,0.72623254]
[1764847827220,40.8,3193.4,3193.3,0.15939254]
[1764847828123,40.8,3193.4,3193.3,1.64369254]
[1764847828715,3.98387458,3193.7,3193.6,1.4843]
[1764847828920,4.73187458,3193.7,3193.6,1.4843]
[1764847829114,3.98387458,3193.7,3193.6,1.4843]
[1764847829511,3.98387458,3193.7,3193.6,1.64085]
[1764847829512,0.00467458,3193.7,3193.6,1.64085]
[1764847830022,1.52407458,3193.7,3193.6,1.64085]
[1764847830321,0.00467458,3193.7,3193.6,1.64085]
[1764847830713,0.00467458,3193.7,3193.6,4.84865]
[1764847830917,0.00364939,3194.1,3194.0,2.09503]
[1764847831116,0.00364939,3194.1,3194.0,3.53365761]
[1764847831319,0.00364939,3194.1,3194.0,0.87993]
[1764847831320,1.52304939,3194.1,3194.0,0.87993]
[1764847831510,1.52304939,3194.1,3194.0,1.64083]
[1764847831713,0.00364939,3194.1,3194.0,6.74145761]
[1764847832515,0.00364939,3194.1,3194.0,10.83621059]
[1764847832715,3.2078,3194.5,3194.4,1.64081]
[1764847832917,3.9792,3194.5,3194.4,1.64081]
[1764847833322,3.2078,3194.5,3194.4,1.64081]
[1764847833515,40.8,3194.9,3194.7,0.15649]
[1764847833725,40.8,3194.9,3194.8,0.7234]
[1764847833726,40.80356997,3194.9,3194.8,0.7234]
[1764847834318,0.7086,3194.9,3194.8,3.04571761]
[1764847834824,1.466,3194.9,3194.8,3.04571761]
[1764847835018,1.466,3194.9,3194.8,1.60709]
[1764847835223,40.8,3195.3,3194.9,0.15648]
[1764847835426,0.7086,3195.0,3194.9,1.65798]
[1764847835620,1.466,3194.9,3194.8,0.0046994]
[1764847836119,3.67785223,3194.9,3194.8,0.0046994]
[1764847836312,2.23922462,3194.9,3194.8,0.0046994]
[1764847837515,2.23922462,3194.9,3194.0,3.2078]
[1764847837516,1.466,3194.1,3194.0,3.2078]
[1764847837826,1.466,3194.1,3194.0,3.9821]
[1764847838126,1.466,3194.1,3194.0,3.2078]
[1764847838627,1.466,3193.9,3193.8,1.65804]
[1764847838821,3.2124994,3194.4,3193.8,1.65804]
[1764847839024,0.7086,3193.9,3193.8,1.65804]
[1764847839223,1.466,3193.9,3193.8,0.93084]
[1764847839428,1.466,3193.9,3193.8,1.65804]
[1764847840827,0.7086,3193.9,3193.8,1.65804]
[1764847841025,1.466,3194.3,3194.2,0.7743]
[1764847842322,1.466,3194.3,3194.2,1.5015]
[1764847843127,0.0046994,3194.4,3194.3,1.5015]
[1764847844237,0.0046994,3194.4,3194.3,1.65801]
[1764847844838,1.4706994,3194.4,3194.3,0.15651]
[1764847845140,1.4706994,3194.4,3194.3,1.65801]
[1764847845527,1.4706994,3194.4,3194.3,0.15651]
[1764847845933,1.466,3193.9,3193.8,0.15654]
[1764847847231,2.23966077,3193.9,3193.8,0.15654]
[1764847848233,1.4111,3193.8,3193.7,0.0046994]
[1764847848540,2.18476077,3193.8,3193.7,0.0046994]
[1764847849742,1.4111,3193.8,3193.7,0.0046994]
[1764847850034,42.2111,3193.8,3193.7,0.0046994]
[1764847850233,42.2111,3193.8,3193.7,0.7530994]
[1764847851234,42.2111,3193.8,3193.7,0.0046994]
[1764847851435,42.2111,3193.8,3193.7,0.7530994]
[1764847851835,42.2111,3193.8,3193.7,1.5142994]
[1764847852044,42.2111,3193.8,3193.7,0.7530994]
[1764847852444,42.2111,3193.8,3193.7,0.0046994]
[1764847853246,42.2111,3193.8,3193.7,0.7530994]
[1764847855348,42.2111,3193.8,3193.7,0.0046994]
[1764847856438,42.2111,3193.8,3193.7,0.9096394]
[1764847856644,42.2111,3193.8,3193.7,1.6708394]
[1764847857447,0.0046994,3194.4,3193.9,1.5096]
[1764847857448,3.2124994,3194.4,3193.9,1.5096]
[1764847857749,1.4141,3194.1,3194.0,0.15653]
[1764847857952,46.19635257,3194.1,3194.0,0.15653]
[1764847858451,1.4141,3193.8,3193.7,0.0046994]
[1764847860343,1.4141,3193.4,3193.3,0.00283254]
[1764847860651,1.4141,3192.9,3192.8,0.15658]
[1764847860948,42.2141,3192.9,3192.8,0.15658]
[1764847861653,42.21750183,3192.9,3192.8,0.16003792]
[1764847863263,42.21750183,3192.9,3192.8,1.66963792]
[1764847863455,42.21750183,3192.9,3192.8,0.90843792]
[1764847863856,42.21750183,3192.9,3192.8,1.66963792]
[1764847864061,3.6507,3193.5,3193.2,0.15656]
[1764847864256,3.6507,3193.5,3193.2,1.63026]
[1764847864456,1.5465,3193.3,3193.2,0.15656]
[1764847864759,3.6507,3193.5,3193.4,1.4737]
[1764847864961,5.1972,3193.5,3193.4,1.4737]
[1764847865155,5.20079857,3193.5,3193.4,1.4737]
[1764847865357,5.20079857,3193.5,3193.4,0.7254]
[1764847865557,1.5465,3193.4,3193.3,0.15656]
[1764847865757,1.5465,3193.4,3193.3,1.63026]
[1764847866263,3.21139857,3193.5,3193.4,1.63026]
[1764847866464,3.98209857,3193.5,3193.4,1.63026]
[1764847866657,5.18279857,3193.5,3193.4,0.88196]
[1764847866861,5.18279857,3193.5,3193.4,0.15656]
[1764847876568,5.18279857,3193.5,3193.4,0.88196]
[1764847876769,3.98209857,3193.5,3193.4,1.63026]
[1764847876969,4.75789857,3193.5,3193.4,1.63026]
[1764847880462,3.98209857,3193.5,3193.4,1.63026]
[1764847880864,4.75789857,3193.5,3193.4,1.63026]
[1764847881470,5.18279857,3193.5,3193.4,1.63026]
[1764847881971,5.18279857,3193.5,3193.4,0.88196]
[1764847883171,5.18279857,3193.5,3193.4,1.63026]
[1764847883475,4.75789857,3193.5,3193.4,1.63026]
[1764847883871,0.00359857,3193.5,3193.4,1.63026]
[1764847884069,4.7589994,3194.4,3194.3,0.15651]
[1764847884375,1.5465,3193.8,3193.7,0.15654]
[1764847885172,1.55034226,3193.8,3193.7,0.15654]
[1764847885978,1.55034226,3193.8,3193.7,1.63024]
[1764847886173,1.55034226,3193.8,3193.7,0.88194]
[1764847887079,0.77454226,3193.8,3193.7,1.63024]
[1764847887276,1.55034226,3193.8,3193.7,1.63024]
[1764847888680,0.77454226,3193.8,3193.7,1.63024]
[1764847889184,0.00384226,3193.8,3193.7,1.63024]
[1764847890175,0.77454226,3193.8,3193.7,1.63024]
[1764847890381,1.55034226,3193.8,3193.7,1.63024]
[1764847890583,0.77454226,3193.8,3193.7,1.63024]
[1764847891083,1.55034226,3193.8,3193.7,1.63024]
[1764847891986,0.77454226,3193.8,3193.7,1.63024]
[1764847892578,0.00384226,3193.8,3193.7,1.63024]
[1764847893385,1.5465,3194.3,3194.2,0.7254]
[1764847893686,1.5465,3194.3,3194.2,1.4737]
[1764847894283,0.0046994,3194.4,3194.3,1.57771]
[1764847894485,0.76994863,3194.4,3194.3,1.57771]
[1764847894783,1.47424863,3194.4,3194.3,1.57771]
[1764847894975,0.76994863,3194.4,3194.3,1.57771]
[1764847895183,0.00754863,3194.4,3194.3,1.57771]
[1764847895881,1.47424863,3194.4,3194.3,1.57771]
[1764847896688,1.47424863,3194.4,3194.3,0.15651]
[1764847901592,1.47424863,3194.4,3194.3,0.87261]
[1764847901890,1.47424863,3194.4,3194.3,1.59741]
[1764847902094,1.47424863,3194.4,3194.3,0.87261]
[1764847903690,1.47424863,3194.4,3194.3,0.15651]
[1764847906394,1.47424863,3194.4,3194.3,0.87851]
[1764847906581,1.47424863,3194.4,3194.3,1.60331]
[1764847906786,1.47424863,3194.4,3194.3,0.87851]
[1764847906995,1.47424863,3194.4,3194.3,0.15651]
[1764847907691,1.431,3193.8,3193.7,0.15654]
[1764847909597,1.431,3193.2,3193.1,4.6546]
[1764847911093,1.431,3193.2,3193.1,4.81117]
[1764847912792,1.431,3193.2,3193.1,3.36437]
[1764847912998,1.431,3192.9,3192.7,3.2078]
[1764847913200,1.431,3192.9,3192.5,0.1612994]
[1764847913402,1.431,3192.9,3192.6,0.15659]
[1764847915894,1.431,3192.9,3192.7,0.15659]
[1764847916594,1.431,3192.9,3192.8,0.72545792]
[1764847916894,1.431,3192.9,3192.8,0.88203792]
[1764847917493,1.431,3192.9,3192.8,0.16003792]
[1764847918891,1.431,3192.9,3192.8,0.88203792]
[1764847919995,1.431,3192.9,3192.8,1.60683792]
[1764847920203,1.431,3193.3,3193.2,0.88136]
[1764847920394,1.431,3193.3,3193.2,1.60336]
[1764847920804,1.431,3193.3,3193.2,0.15656]
[1764847921298,1.431,3193.3,3193.2,0.87856]
[1764847921496,1.8655,3193.5,3193.4,1.4468]
[1764847921695,1.8655,3193.5,3193.4,0.722]
[1764847921889,1.431,3193.3,3193.2,0.87856]
[1764847922099,1.431,3193.3,3193.2,0.15656]
[1764847922301,1.431,3192.9,3192.8,0.00345792]
[1764847923098,1.431,3192.9,3192.8,0.72545792]
[1764847923405,1.431,3192.9,3192.8,0.88203792]
[1764847924205,1.431,3192.9,3192.8,1.60683792]
[1764847924404,1.4432,3193.1,3193.0,1.59077]
[1764847924605,1.4432,3193.1,3193.0,0.15657]
[1764847927011,1.4432,3193.1,3193.0,0.86277]
[1764847927411,1.4432,3193.1,3193.0,0.15657]
[1764847927814,1.4432,3193.1,3193.0,0.86277]
[1764847928006,1.4432,3193.1,3193.0,1.59077]
[1764847928203,1.4432,3193.1,3193.0,0.86277]
[1764847928399,1.4432,3193.1,3193.0,0.15657]
[1764847929009,1.4432,3192.9,3192.8,0.00345792]
[1764847929214,4.651,3192.9,3192.8,0.00345792]
[1764847930505,1.4432,3192.4,3192.3,3.2078]
[1764847931511,0.0046994,3192.7,3192.5,1.5908]
[1764847931710,1.4478994,3192.7,3192.6,1.59079]
[1764847932214,1.4478994,3192.7,3192.6,0.15659]
[1764847933619,1.4432,3192.4,3192.3,3.21125128]
[1764847933817,1.4432,3192.4,3192.3,0.00345128]
[1764847934418,1.8719,3192.0,3191.0,3.24113246]
[1764847934615,1.4432,3191.7,3191.6,1.59084]
[1764847935320,1.4432,3191.7,3191.6,0.86284]
[1764847935523,1.44677174,3191.7,3191.6,0.15934016]
[1764847935724,1.44677174,3191.7,3191.6,0.86554016]
[1764847936622,0.74057174,3191.7,3191.6,1.59354016]
[1764847937018,0.00357174,3191.7,3191.6,1.59354016]
[1764847937523,1.44677174,3191.7,3191.6,1.59354016]
[1764847937918,1.44677174,3191.7,3191.6,0.15934016]
[1764847938313,1.44677174,3191.7,3191.6,0.86554016]
[1764847938523,1.44677174,3191.7,3191.6,1.59354016]
[1764847940025,1.44677174,3191.7,3191.6,0.00270016]
[1764847940221,4.65457174,3191.7,3191.6,0.00270016]
[1764847940525,1.4432,3191.4,3191.3,3.2124994]
[1764847941418,1.4432,3191.4,3191.3,0.00772813]
[1764847942826,1.4432,3191.4,3191.3,0.71392813]
[1764847943021,42.2432,3191.4,3191.3,0.00772813]
[1764847943327,42.2432,3191.4,3191.3,1.44192813]
[1764847943628,0.737,3191.4,3191.3,1.44192813]
[1764847943927,1.4432,3191.4,3191.3,0.16438813]
[1764847944429,1.4432,3190.9,3190.8,6.59468]
[1764847944621,3.2078,3191.2,3190.8,5.88848]
[1764847945524,3.2078,3191.2,3190.9,0.15668]
[1764847949632,1.8719,3191.0,3190.9,0.86288]
[1764847949931,1.8719,3191.0,3190.9,1.59088]
[1764847950627,1.8719,3191.0,3190.9,0.86288]
[1764847951734,1.8719,3191.0,3190.9,0.15668]
[1764847953531,1.8719,3191.0,3190.9,0.86288]
[1764847953728,1.8719,3191.0,3190.9,0.85708]
[1764847954530,1.446,3190.9,3190.8,0.00226873]
[1764847954832,1.446,3190.3,3190.2,3.2078]
[1764847955135,2.88650151,3190.3,3190.2,3.2078]
[1764847955729,2.88650151,3190.3,3190.2,3.21134114]
[1764847956033,2.88650151,3190.3,3190.2,0.00354114]
[1764847956434,1.446,3190.3,3190.2,0.00354114]
[1764847958835,1.8762,3190.0,3189.9,0.0031329]
[1764847959332,1.446,3189.7,3189.6,0.85714]
[1764847959634,1.446,3189.7,3189.6,0.15674]
[1764847959834,1.446,3189.7,3189.6,0.15902216]
[1764847960039,0.7192,3189.7,3189.6,1.57542216]
[1764847960228,44.438,3190.0,3189.9,1.4164]
[1764847960625,1.446,3189.8,3189.7,0.85714]
[1764847960832,1.446,3189.8,3189.7,0.15674]
[1764847964335,1.4701,3189.7,3189.6,0.00228216]
[1764847964541,1.4701,3189.2,3189.1,0.89307]
[1764847965428,1.47340825,3189.2,3189.1,1.64578986]
[1764847965639,1.47340825,3189.2,3189.1,0.89568986]
[1764847966039,1.47340825,3189.2,3189.1,1.64578986]
[1764847966944,1.47340825,3189.2,3189.1,0.89568986]
[1764847967334,1.47340825,3189.2,3189.1,0.15938986]
[1764847967534,1.47340825,3189.2,3189.1,0.89568986]
[1764847968350,1.47340825,3189.2,3189.1,1.64578986]
[1764847969644,1.47340825,3189.2,3189.1,0.15938986]
[1764847970242,1.4701,3188.6,3188.5,0.15679]
[1764847970552,0.4361,3188.5,3187.5,1.9436]
[1764847970843,0.15679,3188.7,3187.8,1.4864]
[1764847970844,3.2078,3187.9,3187.8,1.4864]
[1764847971041,3.2078,3187.9,3187.8,1.64323]
[1764847971240,3.2078,3187.9,3187.8,1.64620389]
[1764847972038,3.2078,3187.9,3187.8,0.15980389]
[1764847972239,3.2078,3187.9,3187.8,1.64620389]
[1764847972542,3.2078,3187.9,3186.5,0.59719]
[1764847972543,11.28345839,3187.9,3186.5,0.59719]
[1764847972746,5.28345839,3187.1,3186.5,1.33349]
[1764847972941,5.28345839,3187.1,3187.0,0.4403]
[1764847973155,5.28345839,3187.1,3187.0,1.1766]
[1764847973156,44.01250692,3187.1,3187.0,1.1766]
[1764847973346,40.80470692,3187.1,3187.0,1.1766]
[1764847973551,0.00470692,3187.1,3187.0,2.08715419]
[1764847973847,3.21250692,3187.1,3187.0,0.44388419]
[1764847974034,40.80470692,3187.1,3187.0,1.93028419]
[1764847974235,3.2078,3187.7,3187.6,1.4864]
[1764847974643,3.2078,3187.7,3187.5,0.4403]
[1764847975641,3.2078,3187.7,3187.3,0.00470692]
[1764847975946,3.2078,3187.7,3187.5,1.1766]
[1764847976143,3.2078,3187.7,3187.6,1.4864]
[1764847976347,3.2078,3187.7,3187.6,1.64324]
[1764847977250,3.2078,3187.7,3187.6,0.7363]
[1764847977445,3.2078,3187.7,3187.5,1.1766]
[1764847977748,3.2078,3187.7,3187.6,1.4864]
[1764847977936,3.2078,3187.7,3187.6,1.64324]
[1764847978144,3.2078,3187.7,3187.6,0.15684]
[1764847978339,3.2078,3187.7,3187.6,1.64324]
[1764847978544,3.2078,3187.7,3187.6,0.15684]
[1764847979148,3.2078,3187.7,3187.3,0.00470692]
[1764847979651,3.2078,3187.7,3187.0,0.00358419]
[1764847979652,2.07565839,3187.4,3187.0,0.00358419]
[1764847979852,3.2078,3187.1,3187.0,0.00358419]
[1764847980253,44.0078,3187.1,3187.0,0.00358419]
[1764847983048,3.2078,3187.1,3187.0,1.93028419]
[1764847983250,3.2078,3187.1,3187.0,1.33705419]
[1764847983454,3.2078,3187.1,3187.0,2.08715419]
[1764847984348,4.6792,3187.6,3187.5,0.7393]
[1764847985250,1.4714,3187.1,3187.0,0.74288419]
[1764847985747,1.4714,3187.1,3187.0,1.47788419]
[1764847985947,0.7571,3187.1,3187.0,1.47788419]
[1764847986358,1.4714,3187.1,3187.0,0.74288419]
[1764847986948,1.4714,3187.1,3187.0,0.00358419]
[1764847987354,1.4714,3187.1,3187.0,0.74288419]
[1764847987657,0.7571,3187.1,3187.0,1.63475419]
[1764847988958,1.4714,3187.1,3187.0,1.63475419]
[1764847989157,0.7571,3187.1,3187.0,2.09315419]
[1764847990154,0.7571,3187.3,3187.2,1.63116]
[1764847990351,0.7571,3187.4,3187.3,1.63115]
[1764847990952,3.2078,3187.6,3187.5,1.9327]
[1764847991152,1.4714,3187.1,3187.0,0.00358419]
[1764847991954,1.4714,3187.1,3187.0,0.74288419]
[1764847992151,1.4714,3187.1,3187.0,0.89975419]
[1764847992460,1.4714,3186.7,3186.6,1.63119]
[1764847992853,1.4714,3186.7,3186.6,0.89619]
[1764847993452,1.47371287,3186.7,3186.6,0.1596573]
[1764847993862,1.47371287,3186.7,3186.6,0.8989573]
[1764847994055,1.47371287,3186.7,3186.6,1.6339573]
[1764847994454,0.00231287,3186.7,3186.6,1.6339573]
[1764847995664,1.47371287,3186.7,3186.6,1.6339573]
[1764847995859,1.47371287,3186.7,3186.6,0.8989573]
[1764847996163,1.47371287,3186.7,3186.6,0.1596573]
[1764847997457,0.00231287,3186.7,3186.6,1.6339573]
[1764847997961,0.75941287,3186.7,3186.6,1.6339573]
[1764847998159,0.75941287,3186.7,3186.6,0.1596573]
[1764847998160,1.47371287,3186.7,3186.6,0.1596573]
[1764847998362,2.24729797,3186.7,3186.6,0.1596573]
[1764847999558,2.24729797,3186.7,3186.3,3.2078]
[1764847999559,1.4714,3186.4,3186.3,3.2078]
[1764847999757,2.2449851,3186.4,3186.3,3.2078]
[1764848000058,0.7735851,3186.4,3186.3,4.839]
[1764848000361,0.7571,3186.6,3186.5,1.63119]
[1764848000563,2.24646067,3186.6,3186.5,0.89991485]
[1764848000864,2.24646067,3186.6,3186.5,1.63491485]
[1764848001260,1.53216067,3186.6,3186.5,2.09331485]
[1764848001566,0.77506067,3186.6,3186.5,2.09331485]
[1764848001959,0.00231287,3186.7,3186.6,1.63119]
[1764848002571,1.47371287,3186.7,3186.6,0.15689]
[1764848002761,2.24902894,3186.7,3186.6,0.15689]
[1764848003061,0.77762894,3186.7,3186.6,1.63119]
[1764848003465,0.00231287,3186.7,3186.6,1.63119]
[1764848004259,0.77762894,3186.7,3186.6,1.63119]
[1764848004471,0.00231287,3186.7,3186.6,1.63119]
[1764848005359,0.77762894,3186.7,3186.6,1.63119]
[1764848005755,0.00231287,3186.7,3186.6,1.63119]
[1764848006665,0.77762894,3186.7,3186.6,1.63119]
[1764848007264,0.00231287,3186.7,3186.6,1.63119]
[1764848008366,0.77762894,3186.7,3186.6,1.63119]
[1764848008570,0.00231287,3186.7,3186.6,1.63119]
[1764848009362,1.47371287,3186.7,3186.6,1.63119]
[1764848009566,2.24902894,3186.7,3186.6,1.63119]
[1764848010366,0.75941287,3186.7,3186.6,1.63119]
[1764848010569,0.00231287,3186.7,3186.6,1.63119]
[1764848012770,0.7571,3186.7,3186.6,4.90035057]
[1764848013072,0.7571,3186.7,3186.6,1.63119]
[1764848013769,0.76082992,3186.7,3186.6,1.63119]
[1764848015464,1.51922992,3186.7,3186.6,0.15689]
[1764848015668,1.51922992,3186.7,3186.6,0.91439]
[1764848016468,1.51922992,3186.7,3186.6,1.65039]
[1764848016765,1.4919,3185.7,3185.6,1.65043]
[1764848016971,2.26780576,3185.7,3185.6,0.91443]
[1764848017168,1.4919,3185.7,3185.6,0.15693]
[1764848017375,1.4919,3185.7,3185.6,0.91443]
[1764848018269,1.4919,3185.7,3185.6,0.91688342]
[1764848018464,1.4919,3185.7,3185.6,0.15938342]
[1764848018664,1.4919,3185.7,3185.6,0.91688342]
[1764848019265,1.4919,3185.7,3185.6,0.15938342]
[1764848019574,1.4919,3185.7,3185.6,0.91688342]
[1764848019776,1.4919,3185.7,3185.6,1.65288342]
[1764848020067,1.4919,3185.7,3185.6,0.15938342]
[1764848020274,1.4919,3185.7,3185.6,0.00245342]
[1764848022073,1.4919,3185.7,3185.6,0.70815342]
[1764848022671,1.4919,3185.7,3185.6,0.00245342]
[1764848026175,3.66360692,3186.0,3185.1,4.44316342]
[1764848026375,3.66360692,3186.0,3185.2,0.15696]
[1764848026576,1.4677,3185.3,3185.2,1.57596]
[1764848027077,1.4677,3185.3,3185.2,1.57964952]
[1764848028274,1.4677,3185.3,3185.2,0.86634952]
[1764848028579,1.4677,3185.3,3185.2,0.16064952]
[1764848029774,1.4677,3185.3,3185.2,0.86634952]
[1764848031878,1.4677,3184.7,3184.6,4.78379]
[1764848032280,4.309,3185.5,3185.0,1.1454]
[1764848032582,3.5761,3185.5,3185.0,2.01567]
[1764848032877,1.4677,3185.2,3185.1,1.57596]
[1764848033183,3.9426,3185.5,3185.4,1.419]
[1764848033381,4.6755,3185.5,3185.4,1.419]
[1764848034184,3.9426,3185.5,3185.4,1.57595]
[1764848034385,4.6755,3185.5,3185.4,1.57595]
[1764848034679,5.0485,3185.5,3185.4,0.15695]
[1764848034880,5.0485,3185.5,3184.6,3.21024167]
[1764848035079,1.4677,3185.1,3185.0,0.86267]